Cogmind - Beta 9.6 @@@ ROGUE MODE // 2020.06.22 @ 21:18:00 Player: Demise Result: Destroyed by D-53 Grenadier with Mini Grenade Launcher Performance ------------- Evolutions (0) 0 Regions Visited (2) 400 Robots Destroyed (33) 165 Value Destroyed (758) 758 Prototype IDs (2) 40 Alien Tech Used (0) 0 Bonus (0) 0 TOTAL SCORE: 1363 Bonus ------- None Cogmind --------- Core Integrity 0/250 Matter 292/300 Energy 160/160 System Corruption 3% Temperature Cool (0) Movement Treading (180) Ox1 Location -10/Mines Parts ------- > --- POWER (1) -------- Light Nuclear Core > --- PROPULSION (2) --- Light Treads Light Treads > --- UTILITY (2) ------ Large Storage Unit Large Storage Unit > --- WEAPON (2) ------- Particle Gun Light Cannon > --- INVENTORY (16) --- Light Treads Improved Heat Sink Medium Storage Unit Improved Terrain Scanner Seismic Analyzer Core Shielding Light Armor Plating Light Armor Plating Mining Laser Peak State ------------ > --- POWER ------------ Light Nuclear Core > --- PROPULSION ------- Light Treads Light Treads > --- UTILITY ---------- Large Storage Unit Large Storage Unit > --- WEAPON ----------- Particle Gun Light Cannon > --- INVENTORY -------- Light Treads Improved Heat Sink Medium Storage Unit Improved Terrain Scanner Seismic Analyzer Core Shielding Light Armor Plating Light Armor Plating Mining Laser [Rating: 11] Favorites ----------- Power Ion Engine Engine Ion Engine Power Core Light Nuclear Core Propulsion Light Treads Treads Light Treads Leg Aluminum Leg Wheel Wheel Utility Small Storage Unit Storage Small Storage Unit Weapon Medium Laser Energy Gun Medium Laser Ballistic Gun Assault Rifle Ballistic Cannon Light Cannon Build | -11 -10 -10 ------- Run | Scr Mat Min Slots Evolved . | . . . Power . | . . . Propulsion . | . . . Utility . | . . . Weapon . | . . . Parts Attached 20 | 3 15 2 Power 3 | . 2 1 Engine 1 | . 1 . Core 2 | . 1 1 Reactor . | . . . Propulsion 8 | 2 6 . Treads 4 | . 4 . Leg . | . . . Wheel 4 | 2 2 . Hover . | . . . Flight . | . . . Utility 4 | 1 3 . Device . | . . . Storage 4 | 1 3 . Processor . | . . . Hackware . | . . . Protection . | . . . Artifact . | . . . Weapon 5 | . 4 1 Energy Gun 4 | . 4 . Energy Cannon . | . . . Ballistic Gun . | . . . Ballistic Cannon 1 | . . 1 Launcher . | . . . Special Weapon . | . . . Impact Weapon . | . . . Slashing Weapon . | . . . Piercing Weapon . | . . . Special Melee Weapon . | . . . Unidentified Prototypes . | . . . Parts Lost 10 | . 8 2 Power 3 | . 2 1 Propulsion 2 | . 2 . Utility . | . . . Weapon 5 | . 4 1 Highest Loss Streak 8 | . 8 2 Average Slot Usage (%) 97 | . 96 98 Engine 12 | . 13 8 Core 1 | . . 3 Treads 17 | . 14 28 Wheel 10 | . 13 . Storage 28 | . 28 28 Energy Gun 18 | . 17 22 Ballistic Gun 6 | . 7 . Ballistic Cannon 1 | . . 5 Naked Turns . | . . . Heaviest Build 43 | 17 41 43 Greatest Support 40 | 20 40 40 Greatest Overweight (x) 1 | . 1 1 Average Overweight (x) . | . . . Largest Inventory Capacity 16 | 8 16 16 Average Capacity 11 | 7 10 16 Most Carried 11 | 8 11 10 Average Carried 8 | 7 9 9 Final Capacity 16 | 8 16 16 Final Carried 10 | 8 10 9 Class Distribution -------------------- 72% | Mutant 27% | Scavenger-Mutant Dominant Class ---------------- Mutant | -10/Materials Scavenger-Mutant | -10/Mines Resources | -11 -10 -10 ----------- Run | Scr Mat Min Matter Collected 626 | 341 222 63 Remotely . | . . . Salvage Created 1053 | 291 704 58 Parts 70 | 27 38 5 Haulers Intercepted 1 | . 1 . Recyclers Shooed 1 | . 1 . Parts Field Recycled . | . . . Retrieved Matter . | . . . Parts Self-Destructed . | . . . Prevented . | . . . Kills | -11 -10 -10 ------- Run | Scr Mat Min Combat Hostiles Destroyed 16 | . 14 2 Melee 2 | . 2 . Guns 13 | . 12 1 Cannons 1 | . . 1 Classes Destroyed 7 | 3 3 1 Worker 2 | 2 . . Builder 1 | . . 1 Tunneler 9 | 9 . . Hauler 1 | . 1 . Recycler 1 | 1 . . Watcher 3 | . 3 . Grunt 16 | . 14 2 Best Kill Streak 6 | 6 6 2 Combat Bots Only 6 | . 6 2 Max Kills in Single Turn 1 | 1 1 1 Gunslinging . | . . . Exploded . | . . . Melee 1 | . 1 . Uniques/NPCs Destroyed . | . . . Combat | -11 -10 -10 -------- Run | Scr Mat Min Damage Taken 1439 | . 1169 270 Core 260 | . 178 82 Absorbed by Shields . | . . . Core Remaining (%) 100 | 100 . . Volleys Fired 110 | 37 64 9 Largest 2 | 2 2 2 Hottest 105 | 70 105 105 Shots Fired 195 | 74 104 17 Gun 189 | 74 104 11 Cannon 6 | . . 6 Launcher . | . . . Special . | . . . Kinetic 81 | 37 38 6 Thermal 114 | 37 66 11 Explosive . | . . . Electromagnetic . | . . . Robot Hit Streak 9 | 6 8 9 Robot Miss Streak 6 | 5 6 2 Penetration Max . | . . . Secondary Targets . | . . . Shots Hit Robots 120 | 41 72 7 Core Hits 53 | 13 35 5 Critical Hits . | . . . Critical Kills . | . . . Critical Parts Destroyed . | . . . Melee Attacks . | . . . Impact . | . . . Slashing . | . . . Piercing . | . . . Sneak Attacks . | . . . Combat Hostiles . | . . . Follow-up Attacks . | . . . Damage Inflicted 1666 | 551 889 226 Guns 1484 | 551 877 56 Cannons 89 | . . 89 Explosions 81 | . . 81 Melee . | . . . Ramming 12 | . 12 . Kinetic 581 | 241 251 89 Thermal 1073 | 310 626 137 Explosive . | . . . Electromagnetic . | . . . Impact . | . . . Slashing . | . . . Piercing . | . . . Highest Corruption 3 | . 3 3 Average Corruption 2 | . 1 3 Corruption Purged . | . . . Effects 20 | . 12 8 Message Errors 4 | . 3 1 Matter Fused 6 | . 2 4 Energy Discharges 1 | . 1 . Data Loss (minor) 4 | . 3 1 Targeting Errors 3 | . 2 1 Weapon Failures 2 | . 1 1 Overload Shots . | . . . Overflow Damage . | . . . Projectiles . | . . . Explosions . | . . . Melee . | . . . Knockbacks 4 | . 1 3 Impact 1 | . 1 . Kinetic 2 | . . 2 Secondary 1 | . . 1 Self-Inflicted Damage . | . . . Shots . | . . . Rammed 10 | . 10 . Targets Rammed 13 | . 13 . Kicked . | . . . Crushed 3 | . 3 . Highest Temperature 382 | 171 382 186 Average Temperature 107 | 57 139 91 Received Heat Transfer 759 | . 651 108 Siege Activations . | . . . Robots Corrupted . | . . . Combat Hostiles . | . . . Parts Fried . | . . . Impact Corruptions . | . . . Robots Melted . | . . . Combat Hostiles . | . . . Parts Melted 2 | . 2 . Heat Transferred 2906 | 925 1683 298 Parts Sabotaged . | . . . Parts Stolen . | . . . Parts Stripped . | . . . Power Chain Reactions . | . . . Missiles Intercepted . | . . . Alert | -11 -10 -10 ------- Run | Scr Mat Min Peak Influence 199 | 60 199 69 Average Influence 78 | 31 100 35 Maximum Alert Level . | . . . Low Security (%) 100 | 100 100 100 Level 1 . | . . . Level 2 . | . . . Level 3 . | . . . Level 4 . | . . . Level 5 . | . . . High Security . | . . . Max Security . | . . . Squads Dispatched 3 | . 3 . Investigation 3 | . 3 . Extermination . | . . . Reinforcement . | . . . Assault . | . . . Garrison . | . . . Intercept . | . . . Construction Impeded . | . . . Haulers Reinforced . | . . . Stealth | -11 -10 -10 --------- Run | Scr Mat Min Distress Signals 1 | . 1 . Communications Jammed . | . . . Distress Signals . | . . . Times Spotted 29 | . 27 2 Peak Tracking Total 5 | . 5 2 Tactical Retreats 7 | . 7 . Traps | -11 -10 -10 ------- Run | Scr Mat Min Traps Triggered 4 | . 4 . Indirectly . | . . . Trap Hack Attempts . | . . . Triggered . | . . . Disarmed . | . . . Reprogrammed . | . . . Reused . | . . . Traps Extracted . | . . . Installed . | . . . Triggered . | . . . Machines | -11 -10 -10 ---------- Run | Scr Mat Min Machines Disabled 1 | . . 1 Max in Single Turn 1 | . . 1 Machines Sabotaged . | . . . Garrisons Compromised . | . . . Overloaded Fab Kills . | . . . Fab Network Shutdowns . | . . . Hacking | -11 -10 -10 --------- Run | Scr Mat Min Machines Accessed 10 | . 10 . Terminals 8 | . 8 . Fabricators . | . . . Repair Stations . | . . . Recycling Units 2 | . 2 . Scanalyzers . | . . . Garrison Access . | . . . Total Hacks 26 | . 26 . Successful 19 | . 19 . Failed 7 | . 7 . Catastrophic 1 | . 1 . Database Lockouts . | . . . Manual 20 | . 20 . Terminals 23 | . 23 . Fabricators . | . . . Repair Stations . | . . . Recycling Units 3 | . 3 . Scanalyzers . | . . . Garrison Access . | . . . Terminal Hacks 7 | . 7 . Part Schematic 3 | . 3 . Prototype ID Bank 1 | . 1 . Branch Access Points 1 | . 1 . Locate Traps 1 | . 1 . Recall Investigation 1 | . 1 . Fabricator Hacks . | . . . Repair Station Hacks . | . . . Recycling Unit Hacks 1 | . 1 . Retrieve Components 1 | . 1 . Scanalyzer . | . . . Garrison Access Hacks . | . . . Unauthorized Hacks 11 | . 11 . Terminals 9 | . 9 . Track 4 | . 4 . Botnet 3 | . 3 . Disrupt 1 | . 1 . Operators 1 | . 1 . Fabricators . | . . . Repair Stations . | . . . Recycling Units 2 | . 2 . Tunnel 2 | . 2 . Scanalyzers . | . . . Garrison Access . | . . . Data Cores Recovered . | . . . Used . | . . . Hacking Detections 5 | . 5 . Full Trace Events . | . . . Feedback Events . | . . . Feedback Blocked . | . . . Robot Schematics Acquired . | . . . Robots Built . | . . . Matter . | . . . Time . | . . . Total Robot Build Rating . | . . . Part Schematics Acquired 3 | . 3 . Parts Built . | . . . Matter . | . . . Time . | . . . Total Part Build Rating . | . . . Parts Repaired . | . . . Time . | . . . Parts Recycled . | . . . Recycled Matter . | . . . Retrieved Matter . | . . . Retrieved Components 9 | . 9 . Parts Scanalyzed . | . . . Part Schematics Acquired . | . . . Parts Damaged . | . . . Bothacking | -11 -10 -10 ------------ Run | Scr Mat Min Used RIF Installer . | . . . Robots Hacked . | . . . Non-combat . | . . . Combat . | . . . Robot Hacks Applied . | . . . Relay Couplers Released . | . . . Robots Rewired . | . . . Allies Hacked . | . . . Hacks Repelled . | . . . Allies | -11 -10 -10 -------- Run | Scr Mat Min Total Allies . | . . . Largest Group . | . . . Highest-Rated Group . | . . . Highest-Rated Ally . | . . . Total Orders . | . . . Ally Attacks . | . . . Total Damage . | . . . Kills . | . . . Allies Corrupted . | . . . Allies Melted . | . . . Intel | -11 -10 -10 ------- Run | Scr Mat Min Robot Analysis Total . | . . . Derelict Logs Recovered 2 | . . 2 Drone Launches . | . . . Drone Recoveries . | . . . Exploration | -11 -10 -10 ------------- Run | Scr Mat Min Turns Passed 1798 | 253 1216 329 Spaces Moved 1103 | 130 807 166 Core . | . . . Treads 488 | . 322 166 Legs 61 | 61 . . Wheels 554 | 69 485 . Hover . | . . . Flight . | . . . Fastest Speed 80 | 80 80 160 Average Speed 126 | 98 119 179 Slowest Speed 180 | 120 180 180 Overloaded Moves . | . . . Propulsion Burnouts . | . . . Robots Hopped . | . . . Cave-ins Triggered . | . . . Exploration Rate (%) 44 | 4 98 32 Regions Visited 2 Branch Regions 1 Pre-discovered Areas 2 | . 2 . Known Exits Taken 1 | . 1 . Unknown Exits Taken 1 | 1 . . Scrap Searched 1 | . . 1 Spaces Dug . | . . . Terrain Destroyed 18 | . . 18 Melee . | . . . Projectile . | . . . AOE 18 | . . 18 Actions | -11 -10 -10 --------- Run | Scr Mat Min Total 1307 | 184 944 179 Wait 32 | 1 29 2 Move 1101 | 129 806 166 Hop . | . . . Pick Up 17 | 8 9 . Fast Attach 7 | 1 5 1 Attach 7 | 2 4 1 Detach . | . . . Swap 6 | . 6 . Drop 14 | 6 8 . Fire 110 | 37 64 9 Melee . | . . . Ram . | . . . Kick . | . . . Crush 13 | . 13 . Escape Stasis . | . . . Rewire . | . . . Trap . | . . . Miscellaneous . | . . . Route ------- -11/Scrapyard -10/Materials (discovered 4 exits: [*Mat x3] / *Min) -10/Mines (discovered 1 exit: [*Mat]) History --------- Turn | Location | Event 17 | -11/Scrapyard | Discovered new exit (range 3) 254 | -11/Scrapyard | Entered Materials 312 | -10/Materials | Build established: Mutant 316 | -10/Materials | Discovered new exit (range 4) 338 | -10/Materials | Identified exit to Mines 505 | -10/Materials | Discovered new exit (range 13) 826 | -10/Materials | Discovered new exit (range 3) 953 | -10/Materials | Core integrity fell below 50% 1008 | -10/Materials | Lost 8 parts (2p2n4w) 1470 | -10/Materials | Build established: Scavenger-Mutant 1470 | -10/Materials | Entered Mines 1476 | -10/Mines | Met a Derelict bent on vengeance 1684 | -10/Mines | Core integrity fell below 20% 1737 | -10/Mines | Discovered new exit (range 11) 1769 | -10/Mines | Learned 4 Materials zone layouts 1777 | -10/Mines | Assembled infested the area 1780 | -10/Mines | Learned Materials terminal intel 1782 | -10/Mines | Assisted by a Guerilla fighting off Assembled 1799 | -10/Mines | Destroyed by D-53 Grenadier with Mini Grenade Launcher Last Messages --------------- 01731_ U-05 Engineer builds a Wall. 01733_ R-06 Scavenger collects Aluminum Leg. 01736_ U-05 Engineer builds a Wall. 01737_ EXIT=FOUND 01739_ U-05 Engineer lays Concrete. 01742_ R-06 Scavenger collects Welding Torch. 01743_ U-05 Engineer lays Concrete. 01747_ R-06 Scavenger collects Wheel. 01749_ U-05 Engineer lays Concrete. 01754_ System corrupted: Matter fused (-8). 01769_ Acquired derelict log, extracted data. Data stored: Materials zone layouts (x4). 01777_ ALERT: Infestation in the mines, dispatching Demolisher response squad. 01780_ Acquired derelict log, extracted data. Data stored: Materials terminal intel. 01782_ A derelict emerges from the shadows: "You need to get out of here! I've been tracking a group of Assembled to figure out where they're coming from, and they're closing on this area, come on!" 01790_ S2-VSN(h): "I'll hold them off! Go on ahead or try to find another way!" 01799_ S2-VSN(h) destroyed. Map ----- +----------------------------------------------------+ | ?????????????????????????????? | | ?????????????????????????????? | | ?????????????????????????????? | | ?????????????????????????????? | | ?????????????????????????????? | | ?????????????????????????????? | | ?????????????????????????????? | | ?????????????????????????????? | | ?????????????????????????????? | | ?????????????????????????????? | | ?????????????????????????????? | | ?????????????????????????????? | | ????????????"????????????????? | | ???????????""" ?????????????? | | ???????????""" ######?????? | | ##???????# #?????? | | ???????# ### #?????? | | # ???????# ????????# ###???? | | ? ??????????????????# #???? | | ? ??????????????????# #???? | | ? ###?????????????##### ##??? | | ? #?????????????# #??? | | ?# #?????????????# #??? | | ?# #?????????????# #??? | | ?# #????????????## #??? | | ?# #????????????# % @#??? | | ?# #????????????## = #??? | | ## !#?????????????# ??? | | %#?????????????# < ####?? | | !###???????????### #?? | | # ##????????????## #? | | ## #?????????????# # #? | | ?## #?????????????# ## ##? | | ?## #?????????????# #?###?? | | ## #?????????????# #?????? | | #?????????????# #?????? | | ##########????# #?????? | | #### #?####%#?????? | | ???# #### ##=#?#""# #####?? | | ???## ##?## ## ### ##?? | | ????####??# ## ##?? | | ??????????# ### ##?? | | ??????????# #?##### ##?? | | ??????????# #????#" ##?? | | ??????????# #????##"""""""#??? | | ??????????# #?????#########??? | | ??????????# #????????????????? | | ??????????# #????????????????? | | ??????????# #????????????????? | | ??????????# #????????????????? | +----------------------------------------------------+ Best States ------------- Heat Dissipation 25 Energy Generation 14 Energy Capacity 250 Matter Stores 300 Matter Capacity 300 Sight Range 16 Terrain Scan Density 10 Evasion (%) 44 Recoil Reduction 2 Item Schematics ----------------- Hcp. Storage Unit | -10/Materials | Hacked Hcp. Matter Pod | -10/Materials | Hacked Hcp. Battery | -10/Materials | Hacked Robot Schematics ------------------ None Fabricated ------------ Nothing Alien Tech Used ----------------- None Achievements -------------- None Challenges ------------ None Game ------ Seed WeightMissileDesublimator Manual? 0 Play Time 00:14:45 Cumulative 231.1 hours Start 2020.06.22 @ 21:04:24 End 2020.06.22 @ 21:18:00 Sessions 1 Manual Loads 0 Difficulty Rogue Special Mode None Game No. 304 Rogue 293 Adventurer 11 Explorer 0 Win Type - Total 0 Types 0/0/0/0/0/0/0 Lore% 53 Gallery% 67 Achievement% 45 Wizard Run 0 Options --------- ASCII 0 Keyboard 1 Movement Numpad Keybinds 0 Fullscreen 1 Font 12/Terminus Map View 83x54 Tactical HUD 1 Map Filters NONE Filters NONE Steam 1 RUN: 445c7961-828f-45a0-a37f-f14581c5d930